Cogmind - Beta 13 @@@ ROGUE MODE // 2024.06.15 @ 16:24:50 Player: Gabe+Kate4EVR Result: Destroyed by Autobeam Turret with Autobeam Performance ------------- Evolutions (0) 0 Regions Visited (3) 600 Robots Destroyed (17) 85 Value Destroyed (359) 359 Prototype IDs (0) 0 Alien Tech Used (0) 0 Bonus (0) 0 TOTAL SCORE: 1044 Bonus ------- None Cogmind --------- Core Integrity 0/250 Matter 150/300 Energy 246/250 System Corruption 0% Temperature Cool (12) Movement Rolling (95) Ox1 Location -10/Subcaves Parts ------- > --- POWER (1) -------- Ion Engine > --- PROPULSION (2) --- Wheel > --- UTILITY (2) ------ Improved Heat Sink > --- WEAPON (2) ------- Beam Rifle Subdweller Shrapnel Launcher > --- INVENTORY (5) ---- Medium Laser Beam Rifle Beam Rifle Light Assault Rifle Light Cannon Peak State ------------ > --- POWER ------------ Ion Engine > --- PROPULSION ------- Wheel Wheel > --- UTILITY ---------- Improved Heat Sink Makeshift Thermal Plating > --- WEAPON ----------- Beam Rifle Beam Rifle > --- INVENTORY -------- Medium Laser Beam Rifle Beam Rifle Light Assault Rifle Light Cannon [Rating: 14] Favorites ----------- Power Ion Engine Engine Ion Engine Propulsion Wheel Wheel Wheel Utility Improved Heat Sink Device Improved Heat Sink Storage Small Storage Unit Protection Makeshift Thermal Plating Weapon Beam Rifle Energy Gun Beam Rifle Ballistic Gun Light Assault Rifle Launcher Subdweller Shrapnel Launcher Build | -11 -10 -10 -10 ------- Run | Yrd Mat Min Sub Slots Evolved . | . . . . Power . | . . . . Propulsion . | . . . . Utility . | . . . . Weapon . | . . . . Parts Attached 19 | 6 9 . 4 Power 2 | 1 1 . . Engine 2 | 1 1 . . Core . | . . . . Reactor . | . . . . Propulsion 6 | 2 2 . 2 Treads . | . . . . Leg . | . . . . Wheel 6 | 2 2 . 2 Hover . | . . . . Flight . | . . . . Utility 4 | 1 2 . 1 Device 1 | . 1 . . Storage 2 | 1 1 . . Processor . | . . . . Hackware . | . . . . Protection 1 | . . . 1 Artifact . | . . . . Weapon 7 | 2 4 . 1 Energy Gun 5 | 1 4 . . Energy Cannon . | . . . . Ballistic Gun 1 | 1 . . . Ballistic Cannon . | . . . . Launcher 1 | . . . 1 Special Weapon . | . . . . Impact Weapon . | . . . . Slashing Weapon . | . . . . Piercing Weapon . | . . . . Special Melee Weapon . | . . . . Unidentified Prototypes . | . . . . Parts Lost 5 | . 1 2 2 Power 1 | . 1 . . Propulsion 3 | . . 2 1 Utility 1 | . . . 1 Weapon . | . . . . Highest Loss Streak 2 | . 1 2 2 To Critical Strikes . | . . . . Average Slot Usage (%) 68 | . 90 58 74 Engine 14 | . 14 14 14 Wheel 8 | . 25 . 13 Device 13 | . 8 14 14 Storage 3 | . 14 . . Energy Gun 26 | . 24 28 23 Launcher 1 | . . . 4 Naked Turns . | . . . . Heaviest Build 22 | 13 22 12 21 Greatest Support 32 | 32 32 3 20 Greatest Overweight (x) 3 | . 1 3 3 Average Overweight (x) 1 | . . 3 1 Largest Inventory Capacity 10 | 8 10 10 5 Average Capacity 5 | 6 8 5 5 Most Carried 10 | . 10 8 5 Average Carried 4 | . 5 5 5 Final Capacity 10 | 8 10 5 5 Final Carried 8 | . 8 5 5 Class Distribution -------------------- 83% | Mutant 16% | Scavenger-Mutant Dominant Class ---------------- Mutant | -10/Materials Mutant | -10/Mines Mutant | -10/Subcaves Resources | -11 -10 -10 -10 ----------- Run | Yrd Mat Min Sub Matter Collected 447 | 219 188 . 40 Remotely . | . . . . Salvage Created 494 | . 399 48 47 Parts 29 | . 23 2 4 Haulers Intercepted 2 | . 2 . . Recyclers Shooed . | . . . . Parts Field Recycled . | . . . . Retrieved Matter . | . . . . Parts Self-Destructed . | . . . . Prevented . | . . . . Kills | -11 -10 -10 -10 ------- Run | Yrd Mat Min Sub Combat Hostiles Destroyed 13 | . 6 3 4 Guns 9 | . 6 3 . AOE 4 | . . . 4 Classes Destroyed 7 | . 4 1 2 Worker 1 | . 1 . . Tunneler 1 | . 1 . . Hauler 2 | . 2 . . Swarmer 5 | . . 3 2 Grunt 6 | . 6 . . Artisan 1 | . . . 1 Subdweller 2 | . . . 2 Best Kill Streak 4 | . 4 3 2 Combat Bots Only 4 | . 4 3 2 Max Kills in Single Turn 2 | . 1 1 2 Gunslinging . | . . . . Exploded 2 | . . . 2 Melee . | . . . . Uniques/NPCs Destroyed . | . . . . Combat | -11 -10 -10 -10 -------- Run | Yrd Mat Min Sub Hostile Shots Fired 79 | . 35 24 20 Missed 22 | . 5 6 11 Damage Taken 768 | . 429 145 194 Core 253 | . 175 58 20 Absorbed by Shields . | . . . . Ignored by Resistances 11 | . . . 11 Core Remaining (%) 100 | 100 . . . Volleys Fired 55 | . 34 8 13 Largest 2 | . 2 2 2 Hottest 112 | . 112 112 112 Shots Fired 107 | . 65 16 26 Gun 99 | . 65 16 18 Cannon . | . . . . Launcher 8 | . . . 8 Special . | . . . . Kinetic 14 | . 6 . 8 Thermal 93 | . 59 16 18 Explosive . | . . . . Electromagnetic . | . . . . Robot Hit Streak 9 | . 9 3 6 Robot Miss Streak 3 | . 3 3 1 Penetration Max . | . . . . Secondary Targets 1 | . 1 . . Max Gunslinging Chain 1 | . 1 . . Shots Hit Robots 62 | . 39 8 15 Core Hits 28 | . 18 3 7 Critical Kills . | . . . . Critical Parts Destroyed . | . . . . Critical Strikes 8 | . 4 3 1 Burn 8 | . 4 3 1 Melee Attacks . | . . . . Impact . | . . . . Slashing . | . . . . Piercing . | . . . . Sneak Attacks . | . . . . Combat Hostiles . | . . . . Follow-up Attacks . | . . . . Damage Inflicted 1473 | . 573 115 785 Guns 864 | . 573 115 176 Cannons . | . . . . Explosions 609 | . . . 609 Melee . | . . . . Ramming . | . . . . Kinetic 630 | . 21 . 609 Thermal 843 | . 552 115 176 Explosive . | . . . . Electromagnetic . | . . . . Impact . | . . . . Slashing . | . . . . Piercing . | . . . . Highest Corruption . | . . . . Average Corruption . | . . . . Corruption Purged . | . . . . Corruption Blocked . | . . . . Overload Shots . | . . . . Overflow Damage . | . . . . Projectiles . | . . . . Explosions . | . . . . Melee . | . . . . Knockbacks . | . . . . Impact . | . . . . Kinetic . | . . . . Secondary . | . . . . Self-Inflicted Damage 69 | . . . 69 Shots 4 | . . . 4 Rammed . | . . . . Targets Rammed . | . . . . Kicked . | . . . . Crushed . | . . . . Highest Temperature 670 | . 670 72 . Average Temperature 162 | . 190 36 . Received Heat Transfer 228 | . 186 . 42 Effects 21 | . 21 . . Shutdowns 3 | . 3 . . Energy Bleed 3 | . 3 . . Matter Decay 1 | . 1 . . Short Circuit 2 | . 2 . . Damage (minor) 2 | . 2 . . Damage (major) 7 | . 7 . . Damage (core) 3 | . 3 . . Siege Activations . | . . . . Robots Corrupted . | . . . . Combat Hostiles . | . . . . Parts Fried . | . . . . Impact Corruptions . | . . . . Robots Melted . | . . . . Combat Hostiles . | . . . . Parts Melted 6 | . 3 2 1 Heat Transferred 2738 | . 1702 518 518 Parts Sabotaged . | . . . . Parts Stolen . | . . . . Parts Stripped . | . . . . Power Chain Reactions . | . . . . Alert | -11 -10 -10 -10 ------- Run | Yrd Mat Min Sub Peak Influence 170 | . 170 116 . Initial 66 | . . 66 . Average 64 | . 86 61 . Maximum Alert Level . | . . . . Low Security (%) 100 | 100 100 100 . Level 1 . | . . . . Level 2 . | . . . . Level 3 . | . . . . Level 4 . | . . . . Level 5 . | . . . . High Security . | . . . . Max Security . | . . . . Squads Dispatched 1 | . 1 . . Investigation . | . . . . Extermination . | . . . . Reinforcement 1 | . 1 . . Assault . | . . . . Garrison . | . . . . Intercept . | . . . . Searches Triggered . | . . . . Construction Impeded . | . . . . Haulers Reinforced . | . . . . Active Scanning Responses . | . . . . Cargo Convoy Interrupts . | . . . . Stealth | -11 -10 -10 -10 --------- Run | Yrd Mat Min Sub Distress Signals . | . . . . Communications Jammed . | . . . . Distress Signals . | . . . . Times Spotted 22 | . 9 3 10 Peak Tracking Total 6 | . 4 3 6 Tactical Retreats 1 | . . . 1 Traps | -11 -10 -10 -10 ------- Run | Yrd Mat Min Sub Traps Triggered . | . . . . Indirectly . | . . . . Trap Hack Attempts . | . . . . Triggered . | . . . . Disarmed . | . . . . Reprogrammed . | . . . . Reused . | . . . . Traps Extracted . | . . . . Installed . | . . . . Triggered . | . . . . Machines | -11 -10 -10 -10 ---------- Run | Yrd Mat Min Sub Machines Disabled 4 | . . . 4 Max in Single Turn 4 | . . . 4 Machines Repaired . | . . . . Machines Dismantled . | . . . . Machines Sabotaged . | . . . . Overloaded Fab Kills . | . . . . Hacking | -11 -10 -10 -10 --------- Run | Yrd Mat Min Sub Machines Accessed . | . . . . Terminals . | . . . . Fabricators . | . . . . Repair Stations . | . . . . Recycling Units . | . . . . Scanalyzers . | . . . . Garrison Access . | . . . . Total Hacks . | . . . . Successful . | . . . . Failed . | . . . . Catastrophic . | . . . . Database Lockouts . | . . . . Manual . | . . . . Terminals . | . . . . Fabricators . | . . . . Repair Stations . | . . . . Recycling Units . | . . . . Scanalyzers . | . . . . Garrison Access . | . . . . Terminal Hacks . | . . . . Fabricator Hacks . | . . . . Repair Station Hacks . | . . . . Recycling Unit Hacks . | . . . . Scanalyzer . | . . . . Garrison Access Hacks . | . . . . Unauthorized Hacks . | . . . . Terminals . | . . . . Fabricators . | . . . . Repair Stations . | . . . . Recycling Units . | . . . . Scanalyzers . | . . . . Garrison Access . | . . . . Data Cores Recovered . | . . . . Used . | . . . . Hacking Detections . | . . . . Full Trace Events . | . . . . Feedback Events . | . . . . Feedback Blocked . | . . . . Robot Schematics Acquired . | . . . . Robots Built . | . . . . Authchips . | . . . . Time . | . . . . Total Robot Build Rating . | . . . . Part Schematics Acquired . | . . . . Parts Built . | . . . . Authchips . | . . . . Time . | . . . . Total Part Build Rating . | . . . . Parts Repaired . | . . . . Time . | . . . . Parts Recycled . | . . . . Recycled Matter . | . . . . Retrieved Matter . | . . . . Retrieved Components . | . . . . Parts Scanalyzed . | . . . . Part Schematics Acquired . | . . . . Parts Damaged . | . . . . Bothacking | -11 -10 -10 -10 ------------ Run | Yrd Mat Min Sub Used RIF Installer . | . . . . Robots Hacked . | . . . . Non-combat . | . . . . Combat . | . . . . Robot Hacks Applied . | . . . . Relay Couplers Released . | . . . . Fabnet Peak Effective % . | . . . . Robots Rewired . | . . . . Allies Hacked . | . . . . Hacks Repelled . | . . . . Allies | -11 -10 -10 -10 -------- Run | Yrd Mat Min Sub Total Allies . | . . . . Largest Group . | . . . . Highest-Rated Group . | . . . . Highest-Rated Ally . | . . . . Total Orders . | . . . . Ally Attacks . | . . . . Total Damage . | . . . . Kills . | . . . . Allies Corrupted . | . . . . Allies Melted . | . . . . Intel | -11 -10 -10 -10 ------- Run | Yrd Mat Min Sub Robot Analysis Total . | . . . . Derelict Logs Recovered 1 | . . . 1 Drone Launches . | . . . . Drone Recoveries . | . . . . Exploration | -11 -10 -10 -10 ------------- Run | Yrd Mat Min Sub Turns Passed 1333 | 55 253 740 285 Spaces Moved 413 | 50 125 50 188 Core 123 | 7 . 50 66 Treads . | . . . . Legs . | . . . . Wheels 290 | 43 125 . 122 Hover . | . . . . Flight . | . . . . Fastest Speed 50 | 50 80 200 80 Average Speed 122 | 93 96 200 127 Slowest Speed 200 | 100 115 200 200 Overloaded Moves . | . . . . Propulsion Burnouts . | . . . . Robots Hopped . | . . . . Cave-ins Triggered . | . . . . Exploration Rate (%) 15 | 4 21 13 24 Regions Visited 3 Branch Regions 2 Pre-discovered Areas 2 | . . . 2 Known Exits Taken . | . . . . Unknown Exits Taken 3 | 1 1 1 . Scrap Searched 2 | . . . 2 Spaces Dug . | . . . . Terrain Destroyed 76 | . . . 76 Melee . | . . . . Projectile . | . . . . AOE 76 | . . . 76 Terrain Rammed . | . . . . Walls Destroyed . | . . . . Machines Disabled . | . . . . Actions | -11 -10 -10 -10 --------- Run | Yrd Mat Min Sub Total 1132 | 55 194 675 208 Wait 633 | . 14 617 2 Move 410 | 49 124 49 188 Hop . | . . . . Pick Up 5 | . 5 . . Fast Attach 16 | 6 6 . 4 Attach . | . . . . Detach 4 | . 4 . . Swap 3 | . 3 . . Drop 6 | . 4 1 1 Fire 55 | . 34 8 13 Melee . | . . . . Ram . | . . . . Kick . | . . . . Crush . | . . . . Escape Stasis . | . . . . Rewire . | . . . . Trap . | . . . . Miscellaneous . | . . . . Route ------- -11/Scrapyard -10/Materials -10/Mines -10/Subcaves History --------- Turn | Location | Event 18 | -11/Scrapyard | Discovered new exit (range 14) 56 | -11/Scrapyard | Entered Materials 141 | -10/Materials | Core integrity fell below 50% 299 | -10/Materials | Discovered new exit (range 9) 309 | -10/Materials | Entered Mines 315 | -10/Mines | Core integrity fell below 20% 386 | -10/Mines | Found a hidden stash of uninstalled traps 620 | -10/Mines | Build established: Mutant 1021 | -10/Mines | Discovered new exit (range 7) 1049 | -10/Mines | Entered Subcaves 1137 | -10/Subcaves | Learned location of Zion (-7) 1216 | -10/Subcaves | Met a Zionite searching for "candidates" 1274 | -10/Subcaves | Ambushed by Subdwellers from Twisted Machinery 1334 | -10/Subcaves | Destroyed by Autobeam Turret with Autobeam Last Messages --------------- 01227_ Acquired Mak. Thermal Plating. 01229_ Acquired 13 matter. 01230_ Searching scrap... 01230_ Found Sub. Shrapnel Launcher. 01230_ Found Sub. Laser. 01230_ Found 21 Matter. 01232_ Dropped Beam Rifle. 01232_ Acquired Sub. Shrapnel Launcher. 01235_ Acquired 10 matter. 01274_ 5T-E78(R) emerges from the Twisted Machinery. 01278_ WU-M2E(R) destroyed. 01287_ 5T-E78(R) suffers critical hit (Burn). 01287_ Destroyed Scrap Shield. 01287_ Sub. Optics melted. 01287_ 5T-E78(R) destroyed. 01309_ Mak. Thermal Plating destroyed. 01309_ Destroyed Mak. Thermal Plating. 01333_ Machine disabled. 01333_ S-10 Pest destroyed. 01334_ Wheel destroyed. Map ----- +----------------------------------------------------+ | ?????????????????????????????????????????????????? | | ?????????????????????????????????????????????????? | | ?????????????????????????????????????????????????? | | ?????????????????????????????????????????????????? | | ?????????????????????????????????????????????????? | | ?????????????????????????????????????????????????? | | ?????????????????????????????????????????????????? | | ?????????????????????????????????????????????????? | | ?????????????????????????????????????????????????? | | ?????????????????????????????????????????????????? | | ?????????????????????????????????????????????????? | | ?????????????????????????????????????????????????? | | ?????????????????????????????????????????????????? | | ?????????????????????????##????###???????????????? | | ????????????????????????## ##### #????######?????? | | ????????????????????????# ## #????# ##????? | | ????????????????????????# ## #????# ##???? | | ????????????????????????## #????# #???? | | ?????????????????????????#### #????# ##??? | | ?????????????????????????#### ####??# #??? | | ???????????????????????###; ; ## #### #??# | | ???????????????????????# ;;; ;### ##?# | | ???????????????????????# ;;" ### | | ???????????????????????#; " | | ?????????????????#######; " | | ?????????? t * @ ;; #"" #"" | | ?????????? ##; "#"" # | | ?????????? t #### """" "" | | ??????????? ss;;######## #??##""## "# = | | ??????????? ??????????# ???#"""#" ""#" | | ????????????????????????# #??? # ##" | | ???????????????????????? #??????? ###" | | ???????????????????????? #?????? # #?#" | | ??????????????????????? ????? ## #?##" | | ??????????????????????? " ????? ??# ??#"" | | ??????????????????????#""" "???? ???## #??# "" | | ????????????????????????""""???# ????###??# """" | | ?????????????????????????##"??????????????####### | | ????????????????????????????????????????????????# | | ????????????????????????????????????????????????# | | ????????????????????????????????????????????????## | | ????????????????????????????????????????????????## | | ???????????????????????????????????????????????## | | ??????????????????????????????????????????????## | | ?????????????????????????????????????????????## | | ?????????????????????????????????????????????# | | ?????????????????????????????????????????????# | | ??????????????????????????????????????????? " ## | | ??????????????????????????????????????????? ?# | | ??????????????????????????????????????????## ?? | +----------------------------------------------------+ Best States ------------- Heat Dissipation 39 Energy Generation 10 Energy Capacity 250 Matter Stores 300 Matter Capacity 300 Sight Range 16 Terrain Scan Density 10 Armor Coverage 100 Resistance: TH 10 Evasion (%) 44 Item Schematics ----------------- None Robot Schematics ------------------ None Fabricated ------------ Nothing Alien Tech Used ----------------- None Achievements -------------- None Challenges ------------ None Game ------ Seed DynamicAntigravDeconstructor Manual? 0 Play Time 00:06:23 Cumulative 178.4 hours Start 2024.06.15 @ 16:16:14 End 2024.06.15 @ 16:24:50 Sessions 1 Manual Loads 0 Difficulty Rogue Special Mode None Game No. 353 Rogue 353 Adventurer 0 Explorer 0 Win Type - Total 0 Types 0/0/0/0/0/0/0/0/0 Lore% 48 Gallery% 66 Achievement% 46 Wizard Run 0 Options --------- Layout 0 ASCII 0 Keyboard 1 Movement Numpad Keybinds 0 Fullscreen 2 Font 18/X11 Map View 76x50 Zoom Use 0% Tactical HUD 1 Map Filters NONE Filters NONE Steam 1 RUN: 49fb02f6-a706-47bc-a602-97e06a4ffe72